bitfinex-derivatives/quotes_BTCF0:USTF0_20240829
["timestamp","ask_amount","ask_price","bid_price","bid_amount"]
[1724942671786,0.008,60867.0,60866.0,0.083127]
[1724942673488,0.007,60870.0,60865.0,0.39075613]
[1724942673690,0.007,60870.0,60869.0,0.082121]
[1724942674194,0.0772,60875.0,60866.0,0.001]
[1724942674195,0.159315,60875.0,60866.0,0.001]
[1724942674388,0.008,60867.0,60866.0,0.165254]
[1724942674792,0.008,60867.0,60866.0,0.658134]
[1724942674993,0.159315,60875.0,60874.0,0.082116]
[1724942675205,0.0772,60875.0,60865.0,0.38975613]
[1724942675393,0.082123,60869.0,60868.0,0.082123]
[1724942676195,0.082123,60869.0,60866.0,0.082126]
[1724942676401,0.082123,60869.0,60865.0,0.38975613]
[1724942676699,0.08212,60872.0,60869.0,0.082122]
[1724942676896,0.08212,60871.0,60869.0,0.082122]
[1724942677098,0.082121,60870.0,60869.0,0.082122]
[1724942677892,0.3572,60875.0,60865.0,0.38975613]
[1724942678092,0.082127,60866.0,60865.0,0.38975613]
[1724942678294,0.082127,60866.0,60865.0,0.47188413]
[1724942678801,0.082127,60866.0,60865.0,0.38975613]
[1724942679295,0.082127,60866.0,60865.0,0.47188413]
[1724942679601,0.082123,60869.0,60868.0,0.082124]
[1724942679902,0.012,60870.0,60869.0,0.082123]
[1724942680707,0.08212,60872.0,60869.0,0.082123]
[1724942680897,0.08212,60872.0,60870.0,0.082121]
[1724942682004,0.08212,60872.0,60871.0,0.08212]
[1724942682393,0.082117,60874.0,60869.0,0.001]
[1724942682797,0.082117,60874.0,60873.0,0.082117]
[1724942683297,0.0772,60875.0,60874.0,0.082116]
[1724942684208,0.00024626,60876.0,60875.0,0.082114]
[1724942685108,0.08235926,60876.0,60875.0,0.082114]
[1724942686411,0.00024626,60876.0,60875.0,0.11177453]
[1724942687105,0.09635926,60876.0,60875.0,0.11277453]
[1724942689907,0.01424626,60876.0,60875.0,0.55568853]
[1724942690099,0.06372409,60878.0,60877.0,0.246336]
[1724942690304,0.007364,60878.0,60877.0,0.994376]
[1724942690603,0.007364,60878.0,60877.0,1.487176]
[1724942691310,0.021364,60878.0,60877.0,1.488176]
[1724942691508,0.00768818,60878.0,60877.0,1.488176]
[1724942691704,0.00024626,60884.0,60877.0,1.488176]
[1724942691705,0.0038,60891.0,60890.0,0.082094]
[1724942691904,0.0038,60891.0,60886.0,0.082099]
[1724942691905,0.3608,60892.0,60891.0,0.082093]
[1724942693217,0.3608,60896.0,60888.0,0.00823246]
[1724942693803,0.3608,60896.0,60894.0,0.082088]
[1724942694100,0.3608,60896.0,60895.0,0.230128]
[1724942694814,0.00024626,60898.0,60897.0,0.082085]
[1724942696512,0.00024626,60898.0,60897.0,0.362085]
[1724942696808,0.00024626,60898.0,60897.0,0.39237085]
[1724942698414,0.00024626,60898.0,60897.0,0.39337085]
[1724942698818,0.00024626,60898.0,60897.0,1.48601085]
[1724942700510,0.00024626,60898.0,60897.0,1.56809585]
[1724942700713,0.00024626,60898.0,60897.0,1.71609585]
[1724942700914,0.00024626,60898.0,60897.0,1.56809585]
[1724942701108,0.00024626,60898.0,60897.0,1.71609585]
[1724942703013,0.579704,60908.0,60907.0,0.444142]
[1724942703208,0.579704,60908.0,60907.0,0.722871]
[1724942703409,0.579704,60908.0,60897.0,0.18104585]
[1724942703410,1.022574,60908.0,60897.0,0.39208585]
[1724942703609,0.3608,60903.0,60897.0,0.001]
[1724942704013,0.442883,60898.0,60897.0,0.149]
[1724942704315,0.442883,60898.0,60895.0,0.148]
[1724942704316,0.081086,60896.0,60895.0,0.148]
[1724942705109,0.080086,60896.0,60895.0,0.148]
[1724942707025,0.080086,60896.0,60895.0,0.149]
[1724942707209,0.082086,60896.0,60895.0,0.149]
[1724942707408,0.854726,60896.0,60895.0,0.0498]
[1724942707708,0.854726,60896.0,60881.0,0.082106]
[1724942707709,0.082106,60882.0,60881.0,0.082106]
[1724942707912,0.442906,60882.0,60881.0,0.082106]
[1724942708307,0.3608,60882.0,60881.0,0.082106]
[1724942709310,0.36104626,60888.0,60887.0,0.082098]
[1724942709918,0.0821,60886.0,60882.0,0.082105]
[1724942710119,0.36104626,60888.0,60881.0,0.3618]
[1724942710413,0.0821,60886.0,60881.0,0.3618]
[1724942710618,0.36104626,60888.0,60881.0,0.3618]
[1724942710817,0.00024626,60888.0,60886.0,0.3608]
[1724942711119,0.0038,60900.0,60887.0,0.56532]
[1724942711320,0.08209,60893.0,60892.0,0.28]
[1724942711521,0.3608,60893.0,60888.0,0.148]
[1724942711722,0.3608,60893.0,60881.0,0.3608]
[1724942711723,0.082094,60890.0,60889.0,0.148]
[1724942711909,0.12228288,60890.0,60889.0,0.148]
[1724942712228,0.082094,60890.0,60889.0,0.148]
[1724942712520,0.082096,60889.0,60883.0,0.08234926]
[1724942712722,0.442897,60888.0,60884.0,0.148]
[1724942713120,0.3608,60888.0,60884.0,0.148]
[1724942713314,0.082102,60884.0,60883.0,0.00024626]
[1724942713509,0.12229364,60884.0,60883.0,0.14824626]
[1724942713711,0.12229364,60884.0,60883.0,0.00024626]
[1724942713915,0.56419564,60884.0,60883.0,0.00024626]
[1724942714115,0.48209364,60884.0,60883.0,0.00024626]
[1724942714309,0.53247535,60884.0,60883.0,0.00024626]
[1724942714510,0.48209364,60884.0,60883.0,0.00024626]
[1724942714722,0.56419564,60884.0,60883.0,0.00024626]
[1724942714918,1.05695564,60884.0,60883.0,0.00024626]
[1724942715117,0.56419564,60884.0,60883.0,0.00024626]
[1724942715319,0.48209364,60884.0,60883.0,0.00024626]
[1724942715619,0.40099164,60884.0,60883.0,0.08235026]
[1724942716223,0.3608,60884.0,60883.0,0.08235026]
[1724942716921,0.30995526,60895.0,60883.0,0.36104626]
[1724942717127,0.04018557,60894.0,60893.0,0.08209]
[1724942717324,0.00016304,60896.0,60895.0,0.082088]
[1724942718914,0.00016304,60896.0,60895.0,0.442888]
[1724942719222,0.00016304,60896.0,60895.0,0.443888]
[1724942719619,0.3608,60905.0,60895.0,0.443888]
[1724942719823,0.512,60907.0,60906.0,0.082073]
[1724942720318,0.0781,60907.0,60906.0,0.082073]
[1724942720519,0.580544,60908.0,60907.0,0.082071]
[1724942720721,0.579704,60908.0,60907.0,0.082071]
[1724942721017,0.579704,60908.0,60904.0,0.082074]
[1724942721018,0.98067908,60908.0,60904.0,0.082074]
[1724942721221,0.940504,60908.0,60904.0,0.082074]
[1724942721421,0.940504,60908.0,60902.0,0.67218541]
[1724942721624,0.579704,60908.0,60907.0,0.082071]
[1724942721930,0.579704,60908.0,60907.0,0.442871]
[1724942722124,0.579704,60908.0,60907.0,0.443871]
[1724942722727,0.579704,60908.0,60907.0,0.723871]
[1724942723225,0.579704,60908.0,60907.0,0.443871]
[1724942723426,0.579704,60908.0,60907.0,0.591671]
[1724942723737,0.579704,60908.0,60907.0,0.443871]
[1724942723927,0.579704,60908.0,60907.0,0.591671]
[1724942724929,0.579704,60908.0,60907.0,0.871671]
[1724942725534,0.579704,60908.0,60907.0,0.771671]
[1724942726030,0.579704,60908.0,60907.0,1.864231]
[1724942726219,0.56556026,60908.0,60907.0,2.028373]
[1724942726422,0.55272026,60908.0,60907.0,1.946302]
[1724942726931,0.55272026,60908.0,60907.0,0.853742]
[1724942727433,0.55272026,60908.0,60907.0,0.001]
[1724942727623,0.63479026,60908.0,60907.0,0.001]
[1724942727826,0.99559026,60908.0,60907.0,0.001]
[1724942728033,0.99559026,60908.0,60907.0,0.00075374]
[1724942728034,1.11783734,60908.0,60907.0,0.00075374]
[1724942728219,1.69246734,60908.0,60907.0,0.00075374]
[1724942728422,0.082077,60903.0,60902.0,0.02962541]
[1724942728624,0.164156,60902.0,60901.0,0.00024626]
[1724942728928,0.164156,60902.0,60882.0,0.6408]
[1724942728929,0.08208,60901.0,60882.0,0.6408]
[1724942729127,0.3608,60892.0,60882.0,0.6408]
[1724942729439,0.3608,60885.0,60881.0,0.1478]
[1724942729633,0.082105,60882.0,60881.0,0.17795391]
[1724942730230,0.12229992,60882.0,60881.0,0.17795391]
[1724942730737,0.12129992,60882.0,60881.0,0.17795391]
[1724942730934,0.081105,60882.0,60881.0,0.17795391]
[1724942731437,0.081105,60882.0,60876.0,0.082113]
[1724942731631,0.081105,60882.0,60875.0,0.00024626]
[1724942731632,0.0774,60881.0,60875.0,0.00024626]
[1724942731833,0.0774,60881.0,60876.0,0.3608]
[1724942732729,0.0759,60884.0,60876.0,0.3608]
[1724942732932,0.0759,60884.0,60880.0,0.082108]
[1724942733128,0.0759,60884.0,60876.0,0.3608]
[1724942733333,0.082106,60881.0,60876.0,0.442913]
[1724942733733,0.082106,60881.0,60877.0,0.082112]
[1724942734340,0.081106,60881.0,60876.0,0.3608]
[1724942734831,0.3608,60878.0,60875.0,0.37939255]
[1724942735038,0.3608,60878.0,60875.0,0.46150655]
[1724942735243,0.3608,60879.0,60875.0,0.46150655]
[1724942735539,0.081106,60881.0,60876.0,0.082113]
[1724942735734,0.3608,60879.0,60876.0,0.082113]
[1724942736442,0.081106,60881.0,60876.0,0.082113]
[1724942736636,0.153,60884.0,60875.0,0.37939255]
[1724942736840,0.3608,60880.0,60878.0,0.082109]
[1724942737643,0.005,60879.0,60878.0,0.082109]
[1724942737936,0.005,60879.0,60875.0,0.37939255]
[1724942737937,0.082112,60878.0,60875.0,0.37939255]
[1724942738136,0.005,60879.0,60875.0,0.02939255]
[1724942738338,0.082113,60876.0,60875.0,0.02939255]
[1724942738541,0.2044269,60876.0,60875.0,0.02939255]
[1724942738735,0.6972269,60876.0,60875.0,0.02939255]
[1724942740634,1.3793399,60876.0,60875.0,0.02939255]
[1724942740835,1.3793399,60876.0,60875.0,0.00024626]
[1724942741035,1.3863399,60876.0,60875.0,0.00124626]
[1724942741238,1.3863399,60876.0,60875.0,2.6e-07]
[1724942741444,1.3863399,60876.0,60855.0,0.082141]
[1724942741445,0.082129,60864.0,60855.0,0.082141]
[1724942741640,0.082137,60858.0,60857.0,0.14784]
[1724942741833,0.082137,60858.0,60852.0,0.082145]
[1724942741834,0.082144,60853.0,60852.0,0.082145]
[1724942742035,0.082147,60851.0,60848.0,0.1941228]
[1724942742235,0.3608,60853.0,60852.0,0.082146]
[1724942742443,0.00024647,60856.0,60855.0,0.082141]
[1724942742636,0.0738,60863.0,60862.0,0.082132]
[1724942743032,0.3608,60864.0,60858.0,0.3608]
[1724942743033,0.3608,60864.0,60863.0,0.082131]
[1724942743238,0.3608,60864.0,60858.0,0.3608]
[1724942743239,0.3608,60870.0,60860.0,0.14784]
[1724942743747,0.082124,60869.0,60866.0,0.082127]
[1724942743955,0.00024647,60871.0,60870.0,0.082121]
[1724942744843,0.007,60869.0,60866.0,0.443926]
[1724942745040,0.007,60869.0,60866.0,0.4734953]
[1724942745348,0.089123,60869.0,60866.0,0.4734953]
[1724942745735,0.081123,60869.0,60866.0,0.4724953]
[1724942746135,0.082125,60867.0,60866.0,0.0295693]
[1724942746341,0.082121,60870.0,60862.0,0.14788]
[1724942746636,0.08213,60864.0,60862.0,0.082131]
[1724942746835,0.082131,60863.0,60862.0,0.14788]
[1724942747242,0.082131,60863.0,60862.0,0.230012]
[1724942747446,0.082131,60863.0,60862.0,0.082132]
[1724942747647,0.082132,60862.0,60861.0,0.14788]
[1724942748046,0.082129,60864.0,60861.0,0.14788]
[1724942748243,0.081129,60864.0,60862.0,0.082131]
[1724942749257,0.082132,60862.0,60861.0,0.14788]
[1724942750354,0.082132,60862.0,60861.0,0.230013]
[1724942751148,0.082132,60862.0,60861.0,0.14788]
[1724942751548,0.083132,60862.0,60861.0,0.14788]
[1724942752548,0.001,60862.0,60861.0,0.230013]
[1724942752740,0.00024647,60871.0,60862.0,0.082132]
[1724942752943,0.00024647,60871.0,60866.0,0.3608]
[1724942754354,0.082125,60867.0,60866.0,0.3608]
[1724942755151,0.16425,60867.0,60866.0,0.3608]
[1724942755453,0.082135,60860.0,60859.0,0.02972788]
[1724942755853,0.081135,60860.0,60859.0,0.02972788]
[1724942756956,0.081135,60860.0,60859.0,0.11186388]
[1724942757456,0.3678,60867.0,60859.0,0.02972788]
[1724942757457,0.08213,60864.0,60859.0,0.02972788]
[1724942757659,0.3678,60867.0,60864.0,0.082129]
[1724942757848,0.082128,60866.0,60864.0,0.082129]
[1724942758548,0.3608,60867.0,60861.0,0.082133]
[1724942758749,0.08213,60864.0,60862.0,0.082132]
[1724942759462,0.00024647,60871.0,60866.0,0.082127]
[1724942759648,0.082124,60869.0,60866.0,0.082127]
[1724942759961,0.082124,60869.0,60867.0,0.082125]
[1724942760155,0.00024647,60871.0,60868.0,0.082123]
[1724942760355,0.00024647,60871.0,60863.0,0.3608]
[1724942760559,0.00024647,60871.0,60870.0,0.082121]
[1724942761349,0.00024647,60871.0,60870.0,0.442921]
[1724942761658,0.3608,60885.0,60870.0,0.442921]
[1724942761659,0.0038,60884.0,60883.0,0.082104]
[1724942761858,0.3608,60885.0,60884.0,0.082102]
[1724942762053,0.3608,60896.0,60883.0,0.14708]
[1724942762364,0.0694,60901.0,60895.0,0.082087]
[1724942762655,0.04018579,60900.0,60893.0,0.64256]
[1724942762861,0.3608,60902.0,60893.0,0.6408]
[1724942762862,0.04018579,60899.0,60893.0,0.6408]
[1724942763048,0.3608,60902.0,60893.0,0.6408]
[1724942763252,0.3608,60902.0,60900.0,0.082081]
[1724942763253,0.04018405,60901.0,60900.0,0.082081]
[1724942763446,0.3608,60902.0,60901.0,0.082079]
[1724942763960,0.3608,60902.0,60901.0,0.229159]
[1724942764257,0.55356026,60908.0,60904.0,0.082074]
[1724942764464,0.04018099,60907.0,60904.0,0.082074]
[1724942764651,0.55356026,60908.0,60904.0,0.082074]
[1724942764846,0.55272026,60908.0,60904.0,0.082074]
[1724942765055,0.04018048,60907.0,60904.0,0.082074]
[1724942765268,0.04018048,60906.0,60904.0,0.082074]
[1724942765469,0.04018048,60905.0,60904.0,0.082074]
[1724942765680,0.04018048,60905.0,60904.0,0.229114]
[1724942766073,0.04018048,60905.0,60904.0,0.230114]
[1724942766270,0.56456026,60908.0,60905.0,0.082074]
[1724942766473,0.04018159,60907.0,60906.0,0.082073]
[1724942767085,0.67870303,60908.0,60907.0,0.082071]
[1724942767380,0.56372026,60908.0,60907.0,0.082071]
[1724942767584,0.67786303,60908.0,60907.0,0.082071]
[1724942767772,0.66686303,60908.0,60907.0,0.082071]
[1724942768176,0.55272026,60908.0,60907.0,0.082071]
[1724942768886,0.56672026,60908.0,60907.0,0.083071]
[1724942769185,0.082076,60904.0,60893.0,0.3608]
[1724942769376,0.082077,60903.0,60901.0,0.14704]
[1724942769885,0.082077,60903.0,60896.0,0.02978836]
[1724942769886,0.082085,60897.0,60896.0,0.02978836]
[1724942770080,0.082088,60895.0,60889.0,0.14704]
[1724942770583,0.08209,60893.0,60892.0,0.02966835]
[1724942770784,0.08209,60893.0,60892.0,0.00024647]
[1724942771180,0.08109,60893.0,60892.0,0.00024647]
[1724942771587,0.40099066,60893.0,60892.0,0.00024647]
[1724942772086,0.01,60893.0,60892.0,0.08333847]
[1724942772778,0.01,60893.0,60892.0,0.11278508]
[1724942773392,0.09209,60893.0,60892.0,0.03069308]
[1724942773886,0.53498,60893.0,60892.0,0.03069308]
[1724942774680,0.45289,60893.0,60892.0,0.03069308]
[1724942775078,1.02766,60893.0,60892.0,0.03069308]
[1724942776190,0.53498,60893.0,60892.0,0.03069308]
[1724942777275,0.082104,60883.0,60882.0,0.3608]
[1724942777489,0.082104,60883.0,60878.0,0.50952]
[1724942777490,0.3608,60885.0,60878.0,0.08383]
[1724942777680,0.082108,60880.0,60879.0,0.082109]
[1724942777877,0.442908,60880.0,60879.0,0.082109]
[1724942778586,0.082109,60879.0,60873.0,0.08236247]
[1724942778794,0.3608,60875.0,60874.0,0.082116]
[1724942779290,0.3598,60875.0,60874.0,0.082116]
[1724942780183,0.3608,60877.0,60873.0,0.00024647]
[1724942780390,0.082116,60874.0,60873.0,0.00024647]
[1724942780888,0.082109,60879.0,60873.0,0.00024647]
[1724942781088,0.0673,60884.0,60875.0,0.3608]
[1724942781291,0.00024647,60886.0,60885.0,0.082101]
[1724942781778,0.36104647,60886.0,60875.0,0.3608]
[1724942782089,0.009,60874.0,60873.0,0.00124647]
[1724942782284,0.091116,60874.0,60873.0,0.00124647]
[1724942783083,0.534032,60874.0,60873.0,0.00124647]
[1724942783284,0.164238,60872.0,60871.0,0.02971948]
[1724942783484,0.082119,60872.0,60862.0,0.082132]
[1724942783687,0.082129,60865.0,60862.0,0.082132]
[1724942783887,0.08213,60864.0,60862.0,0.082132]
[1724942784085,0.08113,60864.0,60862.0,0.082132]
[1724942784284,0.3608,60866.0,60861.0,0.17457176]
[1724942784884,0.082132,60862.0,60861.0,0.17457176]
[1724942785195,0.003,60865.0,60861.0,0.17457176]
[1724942785382,0.085128,60865.0,60861.0,0.25670376]
[1724942785586,0.082131,60863.0,60861.0,0.17457176]
[1724942785788,0.082132,60862.0,60861.0,0.17457176]
[1724942785998,0.082132,60862.0,60861.0,0.02917176]
[1724942786194,0.082132,60862.0,60858.0,0.082136]
[1724942786387,0.082132,60862.0,60857.0,0.00024647]
[1724942786588,0.3628,60866.0,60857.0,0.00024647]
[1724942786986,0.082134,60861.0,60857.0,0.00024647]
[1724942787293,0.082134,60861.0,60857.0,0.02982913]
[1724942787594,0.082134,60861.0,60857.0,0.00024647]
[1724942787996,0.002,60865.0,60864.0,0.082129]
[1724942788198,0.3608,60866.0,60864.0,0.082129]
[1724942788389,0.3608,60866.0,60864.0,0.082128]
[1724942789098,0.3608,60866.0,60865.0,0.082128]
[1724942789494,0.08236947,60869.0,60865.0,0.082128]
[1724942790497,0.3608,60867.0,60865.0,0.082128]
[1724942790892,0.082127,60866.0,60861.0,0.082132]
[1724942791098,0.082127,60866.0,60865.0,0.001]
[1724942791488,0.082137,60858.0,60857.0,0.02789103]
[1724942791693,0.082137,60858.0,60842.0,0.3608]
[1724942791694,0.3608,60858.0,60852.0,0.082145]
[1724942791886,0.213,60857.0,60847.0,0.082151]
[1724942792099,0.082148,60851.0,60843.0,0.1454]
[1724942792397,0.00024647,60853.0,60849.0,0.3608]
[1724942792693,0.3608,60861.0,60860.0,0.082135]
[1724942792887,0.3608,60861.0,60850.0,0.0717]
[1724942793299,0.442934,60861.0,60850.0,0.0717]
[1724942793893,0.442934,60861.0,60857.0,0.082139]
[1724942793894,0.01,60858.0,60857.0,0.082139]
[1724942794497,0.442934,60861.0,60857.0,0.082139]
[1724942794698,0.082135,60860.0,60857.0,0.082139]
[1724942795198,0.082135,60860.0,60858.0,0.082137]
[1724942796089,0.082137,60858.0,60857.0,0.001]
[1724942796291,0.164274,60858.0,60857.0,0.001]
[1724942796489,0.082137,60858.0,60857.0,0.001]
[1724942797596,0.081139,60857.0,60852.0,0.082145]
[1724942797801,0.082141,60856.0,60852.0,0.082145]
[1724942797996,0.082145,60853.0,60849.0,0.50820647]
[1724942798200,0.082141,60856.0,60849.0,0.50648647]
[1724942798499,0.1421,60859.0,60857.0,0.001]
[1724942798500,0.014,60858.0,60857.0,0.001]
[1724942799397,0.082136,60859.0,60856.0,0.08214]
[1724942799702,0.082139,60858.0,60856.0,0.08214]
[1724942799999,0.082136,60859.0,60856.0,0.08214]
[1724942800000,0.082136,60859.0,60856.0,0.44294]
[1724942800205,0.3257,60869.0,60861.0,0.082133]
[1724942800502,0.082125,60868.0,60861.0,0.442933]
[1724942800992,0.082126,60867.0,60861.0,0.442933]
[1724942801690,0.082127,60866.0,60861.0,0.082133]
[1724942801895,0.3257,60869.0,60861.0,0.227573]
[1724942801896,0.3608,60864.0,60861.0,0.227573]
[1724942802091,0.01324647,60862.0,60861.0,0.001]
[1724942802301,0.01324647,60862.0,60856.0,0.02911029]
[1724942802302,0.164278,60857.0,60856.0,0.02911029]
[1724942802498,0.442939,60857.0,60849.0,0.14568647]
[1724942802995,0.082143,60854.0,60850.0,0.3608]
[1724942803887,0.082143,60854.0,60849.0,0.17587009]
[1724942804097,0.082143,60854.0,60852.0,0.082144]
[1724942804496,0.081143,60854.0,60852.0,0.082144]
[1724942805192,0.002,60854.0,60853.0,0.28]
[1724942805392,0.002,60854.0,60853.0,0.362144]
[1724942805793,0.002,60854.0,60853.0,1.619432]
[1724942805993,0.00024647,60862.0,60861.0,0.164266]
[1724942806200,0.00024647,60862.0,60861.0,0.525066]
[1724942806510,0.1437,60877.0,60861.0,0.525066]
[1724942806511,0.0038,60877.0,60863.0,0.08213]
[1724942806700,0.3608,60878.0,60869.0,0.3608]
[1724942806898,0.3608,60878.0,60870.0,0.14544]
[1724942807099,0.3608,60878.0,60874.0,0.082115]
[1724942807707,0.3608,60878.0,60870.0,0.14568647]
[1724942808494,0.00024647,60882.0,60875.0,0.7108]
[1724942808697,0.00024647,60882.0,60881.0,0.082106]
[1724942810502,0.55925329,60891.0,60890.0,0.082094]
[1724942810503,0.00084,60891.0,60890.0,0.082094]
[1724942810696,0.11447609,60895.0,60890.0,0.85624]
[1724942810895,0.47527609,60899.0,60898.0,0.082083]
[1724942811193,0.0681,60903.0,60898.0,0.442883]
[1724942811389,0.082082,60900.0,60894.0,0.00024647]
[1724942811598,0.3608,60896.0,60895.0,0.14544]
[1724942812101,0.47527609,60902.0,60895.0,0.227528]
[1724942812303,0.47527609,60902.0,60895.0,0.14544]
[1724942812501,0.08208,60901.0,60895.0,0.14544]
[1724942812703,0.014,60900.0,60895.0,0.14544]
[1724942813393,0.014,60900.0,60896.0,0.082086]
[1724942813801,0.014,60900.0,60895.0,0.14544]
[1724942814397,0.082081,60900.0,60895.0,0.14544]
[1724942814602,0.082081,60900.0,60895.0,0.14644]
[1724942814903,0.014,60902.0,60895.0,0.50724]
[1724942815104,0.014,60902.0,60898.0,0.35]
[1724942815307,0.3608,60907.0,60901.0,0.082078]
[1724942815602,0.55356026,60908.0,60901.0,0.082078]
[1724942815798,0.55272026,60908.0,60902.0,0.082078]
[1724942816401,0.55272026,60908.0,60900.0,0.3608]
[1724942816596,0.55272026,60908.0,60903.0,0.082076]
[1724942816904,0.55272026,60908.0,60906.0,0.082072]
[1724942817305,0.55272026,60908.0,60902.0,0.082078]
[1724942817498,0.55272026,60908.0,60903.0,0.082076]
[1724942817699,0.55272026,60908.0,60900.0,0.3608]
[1724942818005,0.56672026,60908.0,60907.0,0.082071]
[1724942818806,0.55272026,60908.0,60907.0,0.082071]
[1724942819009,0.56672026,60908.0,60907.0,0.082071]
[1724942819507,0.56672026,60908.0,60907.0,0.11194356]
[1724942820211,0.40767195,60908.0,60907.0,1.36864556]
[1724942820600,0.40767195,60908.0,60907.0,1.44144556]
[1724942820799,0.39367195,60908.0,60907.0,1.35937456]
[1724942820999,0.40767195,60908.0,60907.0,1.36037456]
[1724942821801,0.40767195,60908.0,60907.0,0.76037456]
[1724942822097,0.40767195,60908.0,60907.0,1.36037456]
[1724942822298,0.08717141,60908.0,60907.0,1.44244556]
[1724942822599,0.00084,60940.0,60907.0,1.44244556]
[1724942822600,0.442822,60944.0,60920.0,0.082054]
[1724942822805,0.3608,60944.0,60936.0,0.3608]
[1724942823000,0.3608,60944.0,60942.0,0.082024]
[1724942823603,0.3608,60944.0,60929.0,0.3608]
[1724942823604,0.49228,60943.0,60929.0,0.3608]
[1724942823809,0.3608,60939.0,60931.0,0.082039]
[1724942824013,0.442828,60939.0,60931.0,0.082039]
[1724942824208,0.442828,60939.0,60929.0,0.3608]
[1724942824209,0.082025,60942.0,60934.0,0.3608]
[1724942824412,0.3608,60944.0,60934.0,0.3608]
[1724942824413,0.3618,60944.0,60936.0,0.082032]
[1724942824604,0.3618,60944.0,60936.0,0.35]
[1724942824911,0.3618,60944.0,60937.0,0.08203]
[1724942825113,0.3618,60944.0,60936.0,0.35]
[1724942825311,0.082025,60942.0,60936.0,0.35]
[1724942825503,0.002,60939.0,60936.0,0.35]
[1724942826110,0.002,60939.0,60934.0,0.3608]
[1724942826713,0.002,60939.0,60934.0,0.442834]
[1724942826913,0.002,60939.0,60934.0,0.3608]
[1724942827102,0.002,60939.0,60936.0,0.082032]
[1724942827706,0.002,60939.0,60934.0,0.3608]
[1724942827912,0.082023,60943.0,60936.0,0.001]
[1724942828108,0.082023,60943.0,60941.0,0.3608]
[1724942828611,0.001,60944.0,60941.0,0.3608]
[1724942828800,0.082024,60942.0,60941.0,0.3608]
[1724942829308,0.081033,60936.0,60931.0,0.28]
[1724942829605,0.4317,60947.0,60933.0,0.442836]
[1724942829805,0.4317,60947.0,60933.0,0.3608]
[1724942830007,0.082026,60941.0,60936.0,0.082032]
[1724942830208,0.164052,60941.0,60940.0,0.3608]
[1724942830410,0.3608,60941.0,60933.0,0.3608]
[1724942830616,0.082033,60936.0,60933.0,0.3608]
[1724942830911,0.3608,60941.0,60933.0,0.3608]
[1724942831113,0.082028,60939.0,60933.0,0.3608]
[1724942831501,0.001,60942.0,60941.0,0.083026]
[1724942831701,0.001,60942.0,60941.0,0.001]
[1724942832108,0.083024,60942.0,60941.0,0.001]
[1724942832307,0.001,60939.0,60937.0,0.28]
[1724942832508,0.001,60939.0,60938.0,0.08203]
[1724942832719,0.001,60939.0,60937.0,0.28]
[1724942832910,0.001,60939.0,60938.0,0.3608]
[1724942833217,0.001,60942.0,60941.0,0.001]
[1724942833615,0.001,60942.0,60941.0,0.083026]
[1724942834209,0.083024,60942.0,60941.0,0.001]
[1724942834405,0.08203,60938.0,60937.0,0.03016402]
[1724942834606,0.08203,60938.0,60924.0,0.28]
[1724942834607,0.3608,60938.0,60928.0,0.3608]
[1724942834813,0.1472,60937.0,60928.0,0.3608]
[1724942835013,0.08204,60930.0,60928.0,0.3608]
[1724942835320,0.1472,60937.0,60928.0,0.39004244]
[1724942835520,0.082038,60932.0,60928.0,0.47208544]
[1724942835705,0.1472,60937.0,60928.0,0.39004244]
[1724942835903,0.1482,60937.0,60928.0,0.39104244]
[1724942836109,0.082032,60936.0,60928.0,0.39104244]
[1724942836412,0.082042,60929.0,60928.0,0.39104244]
[1724942836911,0.1482,60937.0,60928.0,0.39104244]
[1724942836912,0.0738,60933.0,60928.0,0.39104244]
[1724942837517,0.082042,60929.0,60928.0,0.39104244]
[1724942837705,0.0738,60933.0,60928.0,0.39104244]
[1724942837909,0.0738,60933.0,60931.0,0.082039]
[1724942838109,0.1482,60937.0,60928.0,0.39104244]
[1724942838110,0.001,60937.0,60936.0,0.082032]
[1724942838412,0.3608,60938.0,60937.0,0.082031]
[1724942838812,0.3608,60938.0,60933.0,0.082036]
[1724942839010,0.0738,60941.0,60933.0,0.3608]
[1724942839214,0.155827,60941.0,60937.0,0.082031]
[1724942839521,0.004,60937.0,60936.0,0.083032]
[1724942840220,0.004,60937.0,60936.0,0.001]
[1724942840715,0.0788,60941.0,60940.0,0.082027]
[1724942840921,0.3608,60949.0,60938.0,0.3608]
[1724942842617,0.3608,60949.0,60946.0,0.082018]
[1724942842820,0.3608,60949.0,60943.0,0.35]
[1724942843009,0.0775,60956.0,60951.0,0.082011]
[1724942843212,0.082008,60955.0,60951.0,0.082011]
[1724942843817,0.0775,60956.0,60952.0,0.08201]
[1724942844121,0.0775,60956.0,60947.0,0.3608]
[1724942844420,0.082014,60950.0,60945.0,0.08202]
[1724942844617,0.082014,60950.0,60946.0,0.082019]
[1724942845009,0.3608,60953.0,60946.0,0.082019]
[1724942845209,0.3608,60953.0,60944.0,0.39023602]
[1724942845210,0.082016,60949.0,60944.0,0.39023602]
[1724942845420,0.082016,60948.0,60944.0,0.39023602]
[1724942845619,0.082015,60949.0,60944.0,0.39023602]
[1724942845821,0.082017,60948.0,60946.0,0.082019]
[1724942846525,0.082018,60947.0,60944.0,0.39023602]
[1724942846728,0.082012,60951.0,60944.0,0.39023602]
[1724942846926,0.082012,60951.0,60948.0,0.082016]
[1724942847224,0.3608,60953.0,60948.0,0.082016]
[1724942847225,0.082014,60950.0,60948.0,0.082016]
[1724942847420,0.082014,60950.0,60944.0,0.39023602]
[1724942847421,0.44281,60953.0,60944.0,0.39023602]
[1724942847623,0.3608,60953.0,60952.0,0.082011]
[1724942847919,0.442809,60953.0,60944.0,0.39023602]
[1724942848119,0.3608,60953.0,60952.0,0.082011]